bitfinex/quotes_BTCUSD_20220101
["timestamp","ask_amount","ask_price","bid_price","bid_amount"]
[1641064187503,0.08910477,47553.0,47552.0,0.21136515]
[1641064187739,0.55910477,47553.0,47552.0,0.21136515]
[1641064187936,0.94470089,47553.0,47552.0,0.21136515]
[1641064188138,0.47470089,47553.0,47552.0,0.21136515]
[1641064188736,1.36322137,47553.0,47552.0,0.21136515]
[1641064189336,1.3814055,47553.0,47552.0,0.21136515]
[1641064189738,1.74114519,47553.0,47552.0,0.21136515]
[1641064190339,1.76179379,47553.0,47552.0,0.21136515]
[1641064190539,1.74360966,47553.0,47552.0,0.21136515]
[1641064191393,1.37879116,47553.0,47552.0,0.21136515]
[1641064191596,1.31083286,47553.0,47552.0,0.21136515]
[1641064191793,0.11515869,47553.0,47552.0,0.21136515]
[1641064191997,0.83156209,47553.0,47552.0,0.21136515]
[1641064192395,0.85210527,47553.0,47552.0,0.21136515]
[1641064192594,0.11372148,47553.0,47552.0,0.21136515]
[1641064192794,0.06113548,47553.0,47552.0,0.21136515]
[1641064193593,0.0405923,47553.0,47552.0,0.21136515]
[1641064196438,1.73770715,47553.0,47552.0,0.21136515]
[1641064197041,0.0405923,47553.0,47552.0,0.21136515]
[1641064197338,0.06023571,47553.0,47552.0,0.21136515]
[1641064198641,0.0405923,47553.0,47552.0,0.21136515]
[1641064204536,0.0405923,47553.0,47552.0,0.21143819]
[1641064212437,0.0404423,47553.0,47552.0,0.21143819]
[1641064214290,2.73344932,47553.0,47552.0,0.21143819]
[1641064215392,2.75347853,47553.0,47552.0,0.21143819]
[1641064215995,0.06047151,47553.0,47552.0,0.21143819]
[1641064216393,0.080262,47553.0,47552.0,0.21143819]
[1641064216593,0.06023279,47553.0,47552.0,0.21143819]
[1641064217635,0.0404423,47553.0,47552.0,0.21143819]
[1641064219537,2.76525486,47553.0,47552.0,0.21143819]
[1641064220737,2.78696626,47553.0,47552.0,0.21143819]
[1641064220939,2.78696626,47553.0,47552.0,0.21261631]
[1641064221588,2.80765182,47553.0,47552.0,0.21261631]
[1641064221789,2.76525486,47553.0,47552.0,0.21261631]
[1641064222389,0.0404423,47553.0,47552.0,0.57142367]
[1641064222690,0.06068605,47553.0,47552.0,0.51390939]
[1641064223088,0.06068605,47553.0,47552.0,0.85177939]
[1641064223290,0.5971593,47561.0,47553.0,1.38871743]
[1641064223590,7.303e-05,47560.0,47559.0,0.05256118]
[1641064223791,7.303e-05,47560.0,47559.0,1.23012218]
[1641064223993,7.303e-05,47560.0,47559.0,0.53799218]
[1641064224190,7.303e-05,47560.0,47559.0,0.30012218]
[1641064224391,7.303e-05,47560.0,47559.0,0.71012218]
[1641064224591,7.303e-05,47560.0,47559.0,0.72938865]
[1641064224791,7.303e-05,47560.0,47559.0,1.37322728]
[1641064224990,7.303e-05,47560.0,47559.0,1.3206661]
[1641064225670,7.303e-05,47560.0,47559.0,1.33927005]
[1641064225865,7.303e-05,47560.0,47559.0,1.32000358]
[1641064226569,7.303e-05,47560.0,47559.0,1.34253342]
[1641064226766,7.303e-05,47560.0,47559.0,1.32392947]
[1641064226967,7.303e-05,47560.0,47559.0,1.34384654]
[1641064227368,7.303e-05,47560.0,47559.0,0.98384654]
[1641064227567,7.303e-05,47560.0,47559.0,1.0058333]
[1641064227769,7.303e-05,47560.0,47559.0,0.98448139]
[1641064228570,7.303e-05,47560.0,47559.0,1.00568779]
[1641064228768,7.303e-05,47560.0,47559.0,0.98370103]
[1641064229603,7.303e-05,47560.0,47559.0,1.0054267]
[1641064229800,7.303e-05,47560.0,47559.0,0.9842203]
[1641064230402,7.303e-05,47560.0,47559.0,0.67825167]
[1641064230602,7.303e-05,47560.0,47559.0,0.69728888]
[1641064230802,7.303e-05,47560.0,47559.0,0.67556321]
[1641064231003,7.303e-05,47560.0,47559.0,0.67438528]
[1641064231601,7.303e-05,47560.0,47559.0,0.95643133]
[1641064231805,7.303e-05,47560.0,47559.0,0.93739412]
[1641064232000,7.303e-05,47560.0,47559.0,0.67570355]
[1641064232201,7.303e-05,47560.0,47559.0,3.2270521]
[1641064232647,7.303e-05,47560.0,47559.0,3.24564378]
[1641064232843,7.303e-05,47560.0,47559.0,3.22646623]
[1641064233645,7.303e-05,47560.0,47559.0,3.24816259]
[1641064233943,7.303e-05,47560.0,47559.0,3.22957091]
[1641064234643,7.303e-05,47560.0,47559.0,3.25061142]
[1641064234843,7.303e-05,47560.0,47559.0,3.22891506]
[1641064235643,7.303e-05,47560.0,47559.0,3.2488634]
[1641064235843,7.303e-05,47560.0,47559.0,3.22782289]
[1641064236700,7.303e-05,47560.0,47559.0,3.24977656]
[1641064237499,7.303e-05,47560.0,47559.0,3.20787455]
[1641064237901,7.303e-05,47560.0,47559.0,3.22923609]
[1641064238800,7.303e-05,47560.0,47559.0,3.24926703]
[1641064239003,7.303e-05,47560.0,47559.0,3.22790549]
[1641064239203,0.00678604,47569.0,47565.0,0.3268172]
[1641064239403,0.00678604,47569.0,47566.0,0.30821371]
[1641064239605,0.00014606,47568.0,47566.0,0.07247707]
[1641064240003,0.0001278,47567.0,47566.0,0.07247707]
[1641064242539,0.0001278,47567.0,47566.0,0.32463778]
[1641064243905,0.0001278,47567.0,47566.0,0.34528365]
[1641064245410,0.0001278,47567.0,47566.0,0.36709283]
[1641064245609,0.0001278,47567.0,47566.0,0.34644696]
[1641064245810,0.0001278,47567.0,47566.0,0.36554981]
[1641064246010,0.0001278,47567.0,47566.0,0.34374063]
[1641064246211,0.0001278,47567.0,47566.0,0.09157992]
[1641064246812,0.0001278,47567.0,47566.0,0.11113642]
[1641064247013,0.0001278,47567.0,47566.0,0.07247707]
[1641064248665,0.0001278,47567.0,47566.0,0.28247707]
[1641064248967,0.0001278,47567.0,47566.0,0.22991707]
[1641064270357,0.15771005,47568.0,47566.0,0.22991707]
[1641064271155,0.71133129,47567.0,47566.0,0.22991707]
[1641064271952,0.15771005,47568.0,47566.0,0.22991707]
[1641064272554,0.70996664,47567.0,47566.0,0.22991707]
[1641064273555,3.32589789,47567.0,47566.0,0.22991707]
[1641064273756,0.70996664,47567.0,47566.0,0.22991707]
[1641064274211,0.15771005,47568.0,47566.0,0.22991707]
[1641064275814,0.15771005,47568.0,47566.0,0.22976707]
[1641064278058,0.10514105,47568.0,47566.0,0.22976707]
[1641064279260,0.59011964,47569.0,47566.0,0.22976707]
[1641064279662,0.00014606,47568.0,47566.0,0.22976707]
[1641064280065,0.0001278,47567.0,47566.0,0.22976707]
[1641064282908,0.0001278,47567.0,47566.0,0.22476707]
[1641064293955,0.59024744,47567.0,47566.0,0.22476707]
[1641064295457,0.0001278,47567.0,47566.0,0.22476707]
[1641064296156,0.0536978,47567.0,47566.0,0.22476707]
[1641064297016,0.64381744,47567.0,47566.0,0.22476707]
[1641064298420,1.97230543,47567.0,47566.0,0.22314707]
[1641064298619,1.19751513,47567.0,47566.0,0.22314707]
[1641064298918,1.19751513,47567.0,47566.0,0.22152707]
[1641064298919,2.22319945,47567.0,47566.0,0.22152707]
[1641064299118,2.55636249,47567.0,47566.0,0.20522707]
[1641064299421,0.00161293,47566.0,47561.0,0.00979933]
[1641064299616,1.66037,47562.0,47561.0,0.00979933]
[1641064299816,1.66037,47562.0,47557.0,0.00908584]
[1641064299817,0.06336933,47561.0,47557.0,0.00908584]
[1641064300018,0.06336933,47561.0,47552.0,0.01918063]
[1641064300019,0.05357,47557.0,47552.0,0.01918063]
[1641064300260,1.13123343,47558.0,47552.0,0.01918063]
[1641064300261,0.00122034,47553.0,47552.0,0.01918063]
[1641064300663,1.64561127,47553.0,47551.0,0.00111]
[1641064300858,0.05477224,47550.0,47549.0,0.00011]
[1641064301059,0.05477224,47550.0,47542.0,0.00011]
[1641064301060,0.00123818,47549.0,47542.0,0.00011]
[1641064301258,0.09690818,47549.0,47542.0,0.00011]
[1641064301660,0.05357,47548.0,47542.0,0.00011]
[1641064301860,1.13357,47544.0,47543.0,0.00031039]
[1641064302163,1.16567,47544.0,47543.0,0.00031039]
[1641064302361,0.08567,47544.0,47543.0,0.00031039]
[1641064303364,0.40567,47544.0,47543.0,0.00031039]
[1641064303560,0.08567,47544.0,47543.0,0.00031039]
[1641064304610,0.04357,47544.0,47543.0,0.00031039]
[1641064304812,0.04357,47544.0,47543.0,0.29840653]
[1641064306112,0.04357,47544.0,47543.0,0.00031039]
[1641064306915,0.08567,47544.0,47543.0,0.00031039]
[1641064307317,0.47567,47544.0,47543.0,0.00031039]
[1641064307755,0.57567,47544.0,47543.0,0.00031039]
[1641064307956,0.628267,47544.0,47543.0,0.00031039]
[1641064308855,0.238267,47544.0,47543.0,0.00031039]
[1641064309056,0.15771212,47544.0,47543.0,0.00031039]
[1641064309357,0.17715379,47544.0,47543.0,0.00031039]
[1641064309555,0.15770867,47544.0,47543.0,0.00031039]
[1641064309860,0.25770866,47544.0,47543.0,0.00031039]
[1641064310158,1.12357,47543.0,47542.0,0.00011]
[1641064310356,0.04357,47540.0,47529.0,0.00033]
[1641064310559,0.04481076,47537.0,47529.0,0.00033]
[1641064310757,0.04357,47535.0,47529.0,0.00033]
[1641064310960,0.08567,47535.0,47529.0,0.00033]
[1641064311158,0.08567,47535.0,47534.0,0.00049432]
[1641064311395,0.0908797,47535.0,47534.0,0.00049432]
[1641064312399,0.62208903,47535.0,47534.0,0.00027432]
[1641064312596,0.72208903,47535.0,47534.0,0.00027432]
[1641064312796,0.29208903,47535.0,47534.0,0.00027432]
[1641064312996,0.04357,47534.0,47533.0,0.00022]
[1641064313197,0.08688867,47534.0,47533.0,0.00022]
[1641064320507,0.08567,47534.0,47533.0,0.00022]
[1641064323764,0.08567,47534.0,47533.0,0.00036555]
[1641064324463,0.04357,47534.0,47533.0,0.00036555]
[1641064324667,0.04357,47534.0,47533.0,0.33823555]
[1641064325463,0.04357,47534.0,47533.0,0.63069944]
[1641064325865,0.04357,47534.0,47533.0,0.68069944]
[1641064326495,0.04357,47534.0,47533.0,0.70077338]
[1641064326701,0.04357,47534.0,47533.0,0.9772551]
[1641064327197,0.04357,47534.0,47533.0,0.95718116]
[1641064327697,0.04357,47534.0,47533.0,0.97526808]
[1641064328500,0.04357,47534.0,47533.0,0.995874]
[1641064328698,0.04357,47534.0,47533.0,0.97778708]
[1641064329503,0.04357,47534.0,47533.0,0.99730283]
[1641064329799,0.04357,47534.0,47533.0,0.63882691]
[1641064330449,0.04357,47534.0,47533.0,0.65919188]
[1641064330651,0.04357,47534.0,47533.0,0.99706188]
[1641064331448,0.04357,47534.0,47533.0,1.01702911]
[1641064331649,0.04357,47534.0,47533.0,0.97714839]
[1641064332047,0.04357,47534.0,47533.0,1.12714839]
[1641064332447,0.04357,47534.0,47533.0,1.14566326]
[1641064332651,0.04357,47534.0,47533.0,1.12569603]
[1641064333051,0.04357,47534.0,47533.0,1.17829103]
[1641064333551,0.04357,47534.0,47533.0,1.18083147]
[1641064333993,0.04357,47534.0,47533.0,1.18201003]
[1641064334592,0.04357,47534.0,47533.0,1.20305934]
[1641064334792,0.04357,47534.0,47533.0,1.18200403]
[1641064335596,0.04357,47534.0,47533.0,1.20289315]
[1641064336193,0.04357,47534.0,47533.0,1.16095472]
[1641064336594,0.04357,47534.0,47533.0,1.18168672]
[1641064337497,0.04357,47534.0,47533.0,1.20068436]
[1641064337755,0.04357,47534.0,47533.0,1.17995236]
[1641064338554,0.04357,47534.0,47533.0,1.19962315]
[1641064338753,0.04357,47534.0,47533.0,1.18062551]
[1641064339155,0.04357,47534.0,47533.0,1.17562551]
[1641064339361,0.04357,47534.0,47533.0,1.22062551]
[1641064339555,0.00906503,47542.0,47533.0,1.24197067]
[1641064339757,0.00906503,47542.0,47538.0,0.052588]
[1641064339956,0.00012781,47541.0,47539.0,0.59624869]
[1641064340156,0.00012781,47541.0,47540.0,0.25300487]
[1641064340357,0.04357,47545.0,47540.0,0.59087487]
[1641064340557,0.04357,47545.0,47541.0,0.58780454]
[1641064340764,0.00018258,47544.0,47541.0,0.33787]
[1641064340956,0.00018258,47544.0,47537.0,0.052592]
[1641064341158,0.00016432,47543.0,47536.0,0.31685614]
[1641064341392,0.00016432,47543.0,47536.0,0.36685614]
[1641064341594,0.00014607,47542.0,47541.0,0.01881587]
[1641064342694,0.00014607,47542.0,47536.0,0.38486015]
[1641064343094,0.00012781,47541.0,47536.0,0.38486015]
[1641064343594,0.00010955,47540.0,47536.0,0.40317158]
[1641064343796,0.00010955,47540.0,47536.0,0.38516757]
[1641064343996,9.129e-05,47539.0,47536.0,0.38516757]
[1641064344196,9.129e-05,47539.0,47537.0,0.052592]
[1641064344394,0.04357,47545.0,47538.0,0.25623448]
[1641064344798,0.00018258,47544.0,47537.0,0.25108821]
[1641064344999,0.00018258,47544.0,47536.0,0.02044616]
[1641064345268,0.00016432,47543.0,47536.0,0.02044616]
[1641064345669,0.00014607,47542.0,47536.0,0.02044616]
[1641064345874,0.00014607,47542.0,47534.0,0.27544682]
[1641064346169,0.00012781,47541.0,47534.0,0.27544682]
[1641064346366,0.00012781,47541.0,47534.0,0.0012639]
[1641064346567,0.00010955,47540.0,47534.0,0.25063077]
[1641064346767,0.04357,47538.0,47533.0,0.30819894]
[1641064346969,0.04357,47538.0,47534.0,0.33787]
[1641064347567,0.04357,47538.0,47534.0,0.35853918]
[1641064347968,0.04357,47538.0,47534.0,0.35553818]
[1641064348569,0.04357,47538.0,47534.0,0.37575828]
[1641064348767,0.04357,47538.0,47534.0,0.3550891]
[1641064349594,0.04357,47538.0,47534.0,0.37365584]
[1641064349795,0.04357,47538.0,47535.0,0.25435149]
[1641064349995,0.04357,47538.0,47536.0,0.33787]
[1641064350195,0.04357,47538.0,47537.0,0.26568699]
[1641064350395,0.04357,47538.0,47537.0,0.60407699]
[1641064350596,0.04364303,47538.0,47537.0,0.60407699]
[1641064350996,0.04364303,47538.0,47537.0,0.65666999]
[1641064351495,0.04364303,47538.0,47537.0,0.60407699]
[1641064351697,0.04364303,47538.0,47537.0,0.35763484]
[1641064351895,0.04364303,47538.0,47537.0,0.60768257]
[1641064352758,0.04364303,47538.0,47537.0,0.62663308]
[1641064353160,0.04364303,47538.0,47537.0,0.37658535]
[1641064353356,0.04364303,47538.0,47537.0,0.33839]
[1641064353761,0.04364303,47538.0,47537.0,0.3580712]
[1641064354762,0.04364303,47538.0,47537.0,0.37709905]
[1641064354964,0.04364303,47538.0,47537.0,0.35741785]
[1641064355763,0.04364303,47538.0,47537.0,0.37782099]
[1641064355963,0.04364303,47538.0,47537.0,0.35879314]
[1641064356798,7.303e-05,47538.0,47537.0,0.380721]
[1641064356999,7.303e-05,47538.0,47537.0,0.36031786]
[1641064357800,7.303e-05,47538.0,47537.0,0.38179751]
[1641064358000,7.303e-05,47538.0,47537.0,0.35986965]
[1641064358700,7.303e-05,47538.0,47537.0,0.63575101]
[1641064358903,7.303e-05,47538.0,47537.0,0.61427136]
[1641064359101,7.303e-05,47538.0,47537.0,0.01864572]
[1641064360286,7.303e-05,47538.0,47537.0,0.03720314]
[1641064361085,7.303e-05,47538.0,47533.0,0.3622848]
[1641064361787,7.303e-05,47538.0,47533.0,0.38421647]
[1641064361989,0.04315397,47541.0,47533.0,0.36339112]
[1641064362185,0.04315397,47541.0,47534.0,7.303e-05]
[1641064363588,0.04315397,47541.0,47534.0,0.2490944]
[1641064363896,0.04315397,47541.0,47535.0,0.33839]
[1641064364701,0.04315397,47541.0,47535.0,0.35658275]
[1641064364902,0.04315397,47541.0,47535.0,0.01819275]
[1641064366104,0.04315397,47541.0,47534.0,7.303e-05]
[1641064366905,0.09575257,47541.0,47534.0,7.303e-05]
[1641064367305,0.04315397,47541.0,47534.0,0.24815661]
[1641064367506,0.04315397,47541.0,47534.0,0.34815661]
[1641064367759,0.04315397,47541.0,47534.0,0.10007303]
[1641064367961,0.04315397,47541.0,47534.0,0.35023186]
[1641064368159,0.04315397,47541.0,47536.0,0.052594]
[1641064368358,0.04315397,47541.0,47536.0,0.105189]
[1641064368558,0.04315397,47541.0,47537.0,0.25029882]
[1641064370260,0.04315397,47541.0,47536.0,0.12637236]
[1641064370661,0.04315397,47541.0,47536.0,0.07377736]
[1641064370863,0.04315397,47541.0,47536.0,0.09546368]
[1641064371061,0.04315397,47541.0,47536.0,0.02168632]
[1641064373202,0.04315397,47541.0,47534.0,0.33835533]
[1641064374002,0.04315397,47541.0,47534.0,0.35885027]
[1641064374802,0.04315397,47541.0,47534.0,0.3794774]
[1641064375004,0.04315397,47541.0,47534.0,0.33828206]
[1641064375260,0.04315397,47541.0,47534.0,0.39087806]
[1641064375459,0.04315397,47541.0,47535.0,0.052595]
[1641064377960,0.04315397,47541.0,47535.0,0.35649166]
[1641064379000,0.04315397,47541.0,47535.0,0.37621748]
[1641064379203,0.04315397,47541.0,47536.0,0.052594]
[1641064380406,0.04315397,47541.0,47535.0,0.39428207]
[1641064380812,0.04315397,47541.0,47535.0,0.03779041]
[1641064381007,0.04315397,47541.0,47535.0,0.05752924]
[1641064381209,0.04315397,47541.0,47535.0,0.01973883]
[1641064382661,0.04315397,47541.0,47534.0,7.303e-05]
[1641064383058,0.04315397,47541.0,47533.0,9.128e-05]
[1641064383059,0.0012057,47534.0,47533.0,9.128e-05]
[1641064383255,0.04444819,47533.0,47532.0,0.01955891]
[1641064383454,0.08654819,47533.0,47532.0,0.01955891]
[1641064384058,0.13917019,47533.0,47531.0,0.00122]
[1641064384258,0.67315397,47532.0,47531.0,0.00122]
[1641064384458,0.08525397,47532.0,47531.0,0.00122]
[1641064384860,0.10385327,47532.0,47531.0,0.00122]
[1641064385258,0.41449618,47532.0,47531.0,0.00122]
[1641064385860,0.4351829,47532.0,47531.0,0.00122]
[1641064386059,0.4165836,47532.0,47531.0,0.00122]
[1641064386917,0.43533601,47532.0,47531.0,0.00122]
[1641064387115,0.04315397,47530.0,47527.0,0.00638507]
[1641064387313,0.04315397,47528.0,47527.0,0.00638507]
[1641064387517,0.08525397,47528.0,47527.0,0.00638507]
[1641064387714,0.67235941,47528.0,47527.0,0.00638507]
[1641064388316,0.67235941,47528.0,47521.0,0.00133]
[1641064388514,0.67235941,47528.0,47522.0,0.00939517]
[1641064388814,0.63025941,47527.0,47522.0,0.00939517]
[1641064389014,0.67235941,47527.0,47522.0,0.00939517]
[1641064389214,0.08525397,47527.0,47526.0,0.00045781]
[1641064395516,0.38875307,47527.0,47526.0,0.00045781]
[1641064396220,0.38875307,47527.0,47522.0,0.00573298]
[1641064396417,0.09577004,47524.0,47522.0,0.00573298]
[1641064396615,0.04315397,47523.0,47522.0,0.00573298]
[1641064397117,0.41363817,47523.0,47522.0,0.00580601]
[1641064397316,0.41484675,47523.0,47522.0,0.00580601]
[1641064397519,0.51484675,47523.0,47522.0,0.00580601]
[1641064397765,3.17957236,47523.0,47522.0,0.00580601]
[1641064397969,3.20056358,47523.0,47522.0,0.00580601]
[1641064398364,3.20056358,47523.0,47522.0,7.303e-05]
[1641064398964,3.22143427,47523.0,47522.0,7.303e-05]
[1641064399177,3.20044305,47523.0,47522.0,7.303e-05]
[1641064400569,3.2213755,47523.0,47522.0,7.303e-05]
[1641064400769,3.20050481,47523.0,47522.0,7.303e-05]
[1641064400971,2.89169543,47523.0,47522.0,7.303e-05]
[1641064401170,2.8695544,47523.0,47522.0,7.303e-05]
[1641064402109,2.88808003,47523.0,47522.0,7.303e-05]
[1641064402510,2.84997958,47523.0,47522.0,7.303e-05]
[1641064403009,2.8717828,47523.0,47522.0,7.303e-05]
[1641064404009,2.89234624,47523.0,47522.0,7.303e-05]
[1641064404208,2.87054302,47523.0,47522.0,7.303e-05]
[1641064405264,2.87147049,47523.0,47522.0,7.303e-05]
[1641064405464,2.87275367,47523.0,47522.0,7.303e-05]
[1641064405667,2.92275367,47523.0,47522.0,7.303e-05]
[1641064406666,2.94405373,47523.0,47522.0,7.303e-05]
[1641064406867,2.92256282,47523.0,47522.0,7.303e-05]
[1641064407065,2.94111279,47523.0,47522.0,7.303e-05]
[1641064407267,2.91981273,47523.0,47522.0,7.303e-05]
[1641064408168,2.94168486,47523.0,47522.0,7.303e-05]
[1641064408370,2.92313489,47523.0,47522.0,7.303e-05]
[1641064408571,2.97313489,47523.0,47522.0,7.303e-05]
[1641064409810,2.99343522,47523.0,47522.0,7.303e-05]
[1641064410011,4.11798944,47523.0,47522.0,7.303e-05]
[1641064410211,4.13940195,47523.0,47522.0,7.303e-05]
[1641064410411,4.11910162,47523.0,47522.0,7.303e-05]
[1641064411213,4.13859508,47523.0,47522.0,7.303e-05]
[1641064411411,4.11718257,47523.0,47522.0,7.303e-05]
[1641064412213,4.1161224,47523.0,47522.0,7.303e-05]
[1641064413061,4.13772651,47523.0,47522.0,7.303e-05]
[1641064413262,4.11929322,47523.0,47522.0,7.303e-05]
[1641064414363,4.1406473,47523.0,47522.0,7.303e-05]
[1641064414865,4.09768911,47523.0,47522.0,7.303e-05]
[1641064415066,1.23958032,47523.0,47522.0,7.303e-05]
[1641064415265,0.88242753,47523.0,47522.0,7.303e-05]
[1641064415865,0.86371649,47523.0,47522.0,7.303e-05]
[1641064416271,0.88341435,47523.0,47522.0,7.303e-05]
[1641064416512,0.06285183,47523.0,47522.0,7.303e-05]
[1641064417313,0.04315397,47523.0,47522.0,7.303e-05]
[1641064419514,0.03815397,47523.0,47522.0,7.303e-05]
[1641064420462,0.03815397,47523.0,47521.0,0.34362616]
[1641064429470,0.03815397,47523.0,47521.0,0.44485246]
[1641064429669,0.03815397,47523.0,47522.0,1.22287788]
[1641064430069,0.03815397,47523.0,47522.0,1.70461124]
[1641064430470,0.03815397,47523.0,47522.0,1.74961124]
[1641064431444,0.03815397,47523.0,47522.0,1.7686312]
[1641064432344,0.03815397,47523.0,47522.0,1.78757908]
[1641064432543,0.03815397,47523.0,47522.0,0.86757908]
[1641064433345,0.03815397,47523.0,47522.0,0.88839756]
[1641064433547,0.03815397,47523.0,47522.0,0.96042972]
[1641064433946,0.03815397,47523.0,47522.0,1.06042972]
[1641064434346,0.03815397,47523.0,47522.0,1.08075696]
[1641064434550,0.03815397,47523.0,47522.0,1.05993848]
[1641064435045,0.03815397,47523.0,47522.0,0.75581724]
[1641064435467,0.03815397,47523.0,47522.0,0.77576564]
[1641064435665,0.03815397,47523.0,47522.0,0.7554384]
[1641064435865,0.03815397,47523.0,47522.0,1.0854384]
[1641064436465,0.03815397,47523.0,47522.0,1.10440067]
[1641064436667,0.03815397,47523.0,47522.0,1.08445227]
[1641064437369,0.03815397,47523.0,47522.0,0.77604983]
[1641064437571,0.03815397,47523.0,47522.0,0.75708756]
[1641064438469,0.03815397,47523.0,47522.0,0.77897071]
[1641064438670,0.03815397,47523.0,47522.0,0.75737315]
[1641064439512,0.03815397,47523.0,47522.0,0.75411152]
[1641064440514,0.03815397,47523.0,47522.0,0.77330793]
[1641064440712,0.03815397,47523.0,47522.0,0.75468641]
[1641064441313,0.03815397,47523.0,47522.0,0.77311861]
[1641064441514,0.03815397,47523.0,47522.0,0.7539222]
[1641064442415,0.03815397,47523.0,47522.0,0.77300404]
[1641064442672,0.03815397,47523.0,47522.0,0.75457184]
[1641064443465,0.03815397,47523.0,47522.0,0.77629102]
[1641064443665,0.03815397,47523.0,47522.0,0.65720918]
[1641064443966,0.03815397,47523.0,47522.0,0.57010918]
[1641064444164,0.03815397,47523.0,47522.0,0.23171918]
[1641064444366,0.03815397,47523.0,47522.0,0.57010918]
[1641064444965,0.03815397,47523.0,47522.0,0.5888381]
[1641064445265,0.03815397,47523.0,47522.0,0.56711892]
[1641064445464,0.03815397,47523.0,47522.0,0.58764796]
[1641064445664,0.03815397,47523.0,47522.0,0.56891904]
[1641064446512,0.03815397,47523.0,47522.0,0.59082532]
[1641064446710,0.03815397,47523.0,47522.0,0.57029628]
[1641064447515,0.03815397,47523.0,47522.0,0.25265508]
[1641064448313,0.03815397,47523.0,47522.0,0.21]
[1641064449713,0.03939488,47523.0,47522.0,0.21]
[1641064449918,0.13411388,47523.0,47522.0,0.21]
[1641064456328,0.43686632,47523.0,47522.0,0.21]
[1641064457533,0.45753988,47523.0,47522.0,0.21]
[1641064458578,0.47675271,47523.0,47522.0,0.21]
[1641064458779,0.15332671,47523.0,47522.0,0.21]
[1641064458980,0.1520858,47523.0,47522.0,0.21]
[1641064460385,0.13287297,47523.0,47522.0,0.21]
[1641064464312,0.43399618,47523.0,47522.0,0.21]
[1641064465011,0.1340981,47523.0,47522.0,0.21]
[1641064465661,0.15559361,47523.0,47522.0,0.21]
[1641064466659,1.35200531,47523.0,47522.0,0.21]
[1641064466859,1.3305098,47523.0,47522.0,0.21]
[1641064467060,0.1340981,47523.0,47522.0,0.21]
[1641064467460,0.96595091,47523.0,47522.0,0.21]
[1641064467661,0.98644062,47523.0,47522.0,0.21]
[1641064469221,1.00666909,47523.0,47522.0,0.21]
[1641064469518,0.96472578,47523.0,47522.0,0.21]
[1641064469716,0.98656192,47523.0,47522.0,0.21]
[1641064470721,0.17485859,47523.0,47522.0,0.21]
[1641064470922,0.15302245,47523.0,47522.0,0.21]
[1641064471820,0.13287297,47523.0,47522.0,0.21]
[1641064472523,0.13287297,47523.0,47522.0,0.16603869]
[1641064486518,0.08025397,47523.0,47522.0,0.16603869]
[1641064488864,0.79146105,47523.0,47522.0,0.16603869]
[1641064489768,0.80970009,47523.0,47522.0,0.16603869]
[1641064489966,0.76760009,47523.0,47522.0,0.16603869]
[1641064490568,0.77914009,47523.0,47522.0,0.16603869]
[1641064491421,0.79765915,47523.0,47522.0,0.16603869]
[1641064491624,0.79765915,47523.0,47522.0,0.21103869]
[1641064492222,0.08645207,47523.0,47522.0,0.16603869]
[1641064493322,0.10457113,47523.0,47522.0,0.16603869]
[1641064493524,0.08701583,47523.0,47522.0,0.16603869]
[1641064493725,0.06889677,47523.0,47522.0,0.16603869]
[1641064494123,0.04969397,47523.0,47522.0,0.16603869]
[1641064500747,0.04469397,47523.0,47522.0,0.16603869]
[1641064503187,0.04469397,47523.0,47522.0,0.16103869]
[1641064509238,0.04469397,47523.0,47522.0,0.22189197]
[1641064514240,2.45643965,47523.0,47522.0,0.22189197]
[1641064515542,2.47602983,47523.0,47522.0,0.22189197]
[1641064516144,3.06853887,47523.0,47522.0,0.22189197]
[1641064516343,2.47574341,47523.0,47522.0,0.22189197]
[1641064517546,2.49440472,47523.0,47522.0,0.22189197]
[1641064517779,2.45643965,47523.0,47522.0,0.22189197]
[1641064518379,2.47505551,47523.0,47522.0,0.22189197]
[1641064519283,2.53164256,47523.0,47522.0,0.22189197]
[1641064520083,2.53038682,47523.0,47522.0,0.22189197]
[1641064520283,2.50906265,47523.0,47522.0,0.22189197]
[1641064520483,2.52783811,47523.0,47522.0,0.22189197]
[1641064521285,2.50906265,47523.0,47522.0,0.22189197]
[1641064521523,2.53041383,47523.0,47522.0,0.22189197]
[1641064522324,0.09731697,47523.0,47522.0,0.22189197]
[1641064522525,0.11593445,47523.0,47522.0,0.22189197]
[1641064523930,0.11593445,47523.0,47521.0,0.00326028]
[1641064523931,1.10973397,47522.0,47521.0,0.00326028]
[1641064524129,1.11537397,47521.0,47520.0,0.00011]
[1641064524330,1.11537397,47521.0,47519.0,0.00022]
[1641064524331,1.11315397,47520.0,47519.0,0.00022]
[1641064524529,0.03315397,47518.0,47513.0,0.00033]
[1641064524732,1.25525396,47518.0,47513.0,0.00033]
[1641064524928,1.25525396,47518.0,47517.0,0.00918005]
[1641064525204,1.11315397,47514.0,47513.0,0.00033]
[1641064525396,1.11315397,47513.0,47501.0,0.00144]
[1641064525598,1.08,47511.0,47501.0,0.00144]
[1641064525797,0.07525397,47510.0,47501.0,0.00144]
[1641064526003,0.12525397,47510.0,47508.0,0.00025561]
[1641064526200,1.50548147,47509.0,47508.0,0.00025561]
[1641064526399,1.60279117,47509.0,47508.0,0.00025561]
[1641064526599,1.70279117,47509.0,47508.0,0.00025561]
[1641064526999,2.40582659,47509.0,47508.0,0.00025561]
[1641064527301,0.03315397,47504.0,47501.0,0.00144]
[1641064527498,0.03315397,47502.0,47501.0,0.00144]
[1641064527699,0.07525397,47502.0,47501.0,0.00144]
[1641064529334,0.07525397,47502.0,47501.0,0.00261936]
[1641064530335,0.37317545,47502.0,47501.0,0.00261936]
[1641064530533,0.07525397,47502.0,47501.0,0.00261936]
[1641064532976,0.45525397,47502.0,47501.0,0.00261936]
[1641064533177,0.65525396,47502.0,47501.0,0.00261936]
[1641064533877,0.55525397,47502.0,47501.0,0.00261936]
[1641064534078,0.88693121,47502.0,47501.0,0.00261936]
[1641064534279,0.89214091,47502.0,47501.0,0.21261936]
[1641064534480,1.47794926,47502.0,47501.0,0.21250936]
[1641064534880,1.07702549,47501.0,47500.0,0.00011]
[1641064535080,1.53898471,47501.0,47500.0,0.00011]
[1641064535284,1.53898471,47501.0,47500.0,0.00025606]
[1641064535579,1.53898471,47501.0,47499.0,0.00033]
[1641064535580,1.64430859,47501.0,47499.0,0.00033]
[1641064535779,1.45281712,47500.0,47499.0,0.00033]
[1641064535979,1.54491712,47500.0,47499.0,0.00033]
[1641064536280,1.64491712,47500.0,47499.0,0.00033]
[1641064536533,2.22947176,47500.0,47499.0,0.00033]
[1641064537333,1.66330533,47500.0,47499.0,0.00033]
[1641064538036,2.86034061,47500.0,47499.0,0.00033]
[1641064538234,0.60483031,47500.0,47499.0,0.00033]
[1641064538835,1.80189401,47500.0,47499.0,0.00033]
[1641064539035,1.76198082,47500.0,47499.0,0.00033]
[1641064539335,1.78016202,47500.0,47499.0,0.00033]
[1641064540277,1.80105047,47500.0,47499.0,0.00033]
[1641064540481,1.78807897,47500.0,47499.0,0.00033]
[1641064540680,1.78807897,47500.0,47499.0,0.00011]